[Event "Czech Championship 2022"]
[Site "Usti nad Labem"]
[Date "2022.05.19"]
[Round "6.3"]
[White "Plat, Vojtech"]
[Black "Stocek, Jiri"]
[Result "1-0"]
[ECO "E21"]
[WhiteElo "2547"]
[BlackElo "2533"]
[Annotator "TA"]
[PlyCount "277"]
[EventDate "2022.05.12"]
[EventType "swiss"]
[EventCountry "CZE"]
[SourceTitle "playchess.com"]
[Source "ChessBase"]
[SourceQuality "1"]
[TimeControl "40/5400+30:1800+30"]

{[%evp 101,277,50,46,20,29,0,0,0,0,0,8,0,0,0,0,-8,0,0,0,0,40,41,26,15,16,14,23,14,14,8,8,0,8,8,16,16,16,16,16,8,8,8,8,8,8,8,8,8,8,8,8,8,8,8,8,8,8,8,8,8,8,8,8,8,8,8,8,8,8,8,8,8,8,8,8,8,8,8,8,8,8,0,8,8,8,8,8,8,8,8,8,8,8,8,8,8,8,7,8,8,8,8,8,8,8,8,8,8,8,8,8,8,8,8,8,8,8,8,8,8,8,8,8,8,8,8,8,8,41,8,52,22,20,8,8,8,8,8,8,8,8,8,8,8,22,8,67,11,14,4,4,0,8,0,6,7,14,22,64,66,288,152,128,22,22,8,29984,29985,29985,144,29986,29987,29987,108,29988,29989,29989,29990]} 1. d4 {[%emt 0:00:04]} Nf6 {[%emt 0:03:42]} 2. Nf3 {[%emt 0:00:07]} b6 {[%emt 0:01:00]} 3. e3 {[%emt 0:00:15]} Bb7 {[%emt 0:00:08]} 4. c4 {[%emt 0:00:06]} e6 {[%emt 0:00:27]} 5. Nc3 {[%emt 0:00:05]} Bb4 {[%emt 0:00:35]} 6. Bd2 {[%emt 0:00:04]} O-O {[%emt 0:00:58]} 7. Bd3 {[%emt 0:00:06]} d6 {[%emt 0:01:03]} 8. O-O {[%emt 0:00:14]} Nbd7 {[%emt 0:00:15]} 9. b3 {[%emt 0:00:35]} Re8 {[%emt 0:03:52]} 10. a3 {[%emt 0:00:45]} Bxc3 {[%emt 0:00:05]} 11. Bxc3 {[%emt 0:00:02]} e5 {[%emt 0:03:02]} 12. Bc2 {[%emt 0:07:13]} Be4 {[%emt 0:08:38]} 13. Bxe4 {[%emt 0:03:23]} Nxe4 {[%emt 0:00:11]} 14. Bb2 {[%emt 0:00:01]} c5 {[%emt 0:09:24]} 15. Qc2 {[%emt 0:05:06]} Nef6 {[%emt 0:08:24]} 16. dxe5 {[%emt 0:00:13]} dxe5 {[%emt 0:02:11]} 17. Rad1 {[%emt 0:00:40]} Qc7 {[%emt 0:03:19]} 18. Qf5 {[%emt 0:01:39]} h6 {[%emt 0:04:37]} 19. e4 {[%emt 0:03:50]} Re6 {[%emt 0:02:53]} 20. Nh4 {[%emt 0:03:37]} Nf8 {[%emt 0:06:41]} 21. Qf3 {[%emt 0:05:35]} Qb7 {[%emt 0:06:41]} 22. Nf5 {[%emt 0:03:55]} Ng6 {[%emt 0:03:11]} 23. Rfe1 {[%emt 0:02:22]} b5 {[%emt 0:00:45]} 24. Bc1 {[%emt 0:07:11]} bxc4 {[%emt 0:00:46]} 25. bxc4 {[%emt 0:00:02]} Rb8 {[%emt 0:06:51]} 26. h4 {[%emt 0:03:22]} h5 {[%emt 0:06:29]} 27. Bg5 {[%emt 0:03:42]} Ng4 {[%emt 0:01:31]} 28. Ng3 {[%emt 0:05:42]} f6 {[%emt 0:03:53]} 29. Nxh5 {[%emt 0:03:56]} Nxf2 {[%emt 0:00:20]} 30. Qxf2 {[%emt 0:00:37]} fxg5 {[%emt 0:00:04]} 31. Qf5 {[%emt 0:01:46]} Qe7 {[%emt 0:01:43]} 32. hxg5 {[%emt 0:00:34]} Nf8 {[%emt 0:01:54]} 33. Rd5 {[%emt 0:05:09]} Re8 {[%emt 0:03:20]} 34. Re3 {[%emt 0:06:43]} Rg6 {[%emt 0:00:52]} 35. Rg3 {[%emt 0:00:16]} Qc7 {[%emt 0:02:48]} 36. Rg4 {[%emt 0:03:29]} Ree6 {[%emt 0:01:47]} 37. Ng3 {[%emt 0:03:51]} Nh7 {[%emt 0:00:45]} 38. Qf2 {[%emt 0:05:05]} Rxg5 {[%emt 0:00:42]} 39. Rxc5 {[%emt 0:02:39]} Qb7 {[%emt 0:02:14]} 40. Rb5 {[%emt 0:02:28]} Qc7 {[%emt 0:01:38]} 41. Rxg5 {[%emt 0:34:23]} Nxg5 {[%emt 0:30:12]} 42. Qf5 {[%emt 0:03:45]} Qd8 {[%emt 0:00:41]} 43. Rd5 {[%emt 0:00:21]} Qe7 {[%emt 0:00:00]} 44. Qg4 {[%emt 0:00:00]} Qf6 {[%emt 0:00:00]} 45. Rd7 {[%emt 0:00:00]} Nf7 {[%emt 0:00:00]} 46. Qf5 {[%emt 0:00:00]} a6 {[%emt 0:00:00]} 47. Qxf6 {[%emt 0:00:00]} Rxf6 {[%emt 0:00:00]} 48. Nf5 {[%emt 0:00:00]} g6 {[%emt 0:00:00]} 49. Ne7+ {[%emt 0:00:00]} Kf8 {[%emt 0:00:00]} 50. c5 {[%emt 0:00:00]} Re6 {[%emt 0:00:00]} 51. Nd5 {[%emt 0:00:00]} Rc6 {[%emt 0:00:00]} 52. Ra7 {[%emt 0:00:00]} Ng5 {[%emt 0:00:00]} 53. Ne7 {[%emt 0:00:00]} Re6 {[%emt 0:00:00]} 54. Nc8 {[%emt 0:00:00]} Nxe4 {[%emt 0:00:00]} 55. Rc7 {[%emt 0:00:00]} Ke8 {[%emt 0:00:00]} 56. Na7 {[%emt 0:00:00]} Re7 {[%emt 0:00:00]} 57. Rc8+ {[%emt 0:00:00]} Kd7 {[%emt 0:01:05]} 58. a4 {[%emt 0:01:18]} Rh7 {[%emt 0:01:02]} 59. Rc6 {[%emt 0:04:35]} g5 {[%emt 0:03:07]} 60. a5 {[%emt 0:01:27]} g4 {[%emt 0:00:43]} 61. Rxa6 {[%emt 0:00:37]} Nxc5 {[%emt 0:00:07]} 62. Rg6 {[%emt 0:00:12]} e4 {[%emt 0:01:10]} 63. Rg5 {[%emt 0:04:16]} Ne6 {[%emt 0:00:22]} 64. Rxg4 {[%emt 0:00:25]} Rh5 {[%emt 0:00:22]} 65. a6 {[%emt 0:01:32]} Re5 {[%emt 0:02:03]} 66. Rh4 {[%emt 0:01:59]} Kc7 {[%emt 0:00:27]} 67. Kf2 {[%emt 0:00:57]} e3+ {[%emt 0:00:39]} 68. Ke2 {[%emt 0:00:09]} Kb6 {[%emt 0:00:10]} 69. Nc8+ {[%emt 0:00:14]} Kxa6 {[%emt 0:00:04]} 70. Nd6 {[%emt 0:00:06]} Rg5 {[%emt 0:00:37]} 71. Ra4+ {[%emt 0:00:25]} Kb6 {[%emt 0:00:15]} 72. g4 {[%emt 0:00:01]} Kc6 {[%emt 0:01:27]} 73. Nf5 {[%emt 0:00:16]} Kd5 {[%emt 0:00:57]} 74. Ra5+ {[%emt 0:00:49]} ({Don't play} 74. Nxe3+ Ke5 $14) 74... Ke4 {[%emt 0:00:26]} 75. Nd6+ {[%emt 0:00:22]} Kd4 {[%emt 0:00:29]} 76. Ra4+ {[%emt 0:00:15]} Kd5 {[%emt 0:00:06]} 77. Ne4 {[%emt 0:00:50]} Re5 {[%emt 0:01:24]} 78. Nc3+ $1 {[%emt 0:00:52]} Kd6 {[%emt 0:00:46]} 79. Nd1 {[%emt 0:00:25]} Nc5 {[%emt 0:00:24]} 80. Ra8 {[%emt 0:00:28]} Ne6 {[%emt 0:01:04]} 81. Nxe3 {[%emt 0:00:06]} Re4 {[%emt 0:00:08]} 82. Ra5 {[%emt 0:00:36]} Ke7 {[%emt 0:00:17]} 83. Kf3 {[%emt 0:00:13]} Rf4+ {[%emt 0:00:04]} 84. Kg3 {[%emt 0:00:01]} Rf8 {[%emt 0:00:28]} 85. Ra6 {[%emt 0:00:36]} Rd8 {[%emt 0:00:24]} 86. Nf5+ {[%emt 0:00:25]} Kf6 {[%emt 0:00:09]} 87. Nd6 {[%emt 0:00:59]} Ke7 {[%emt 0:00:11]} 88. Ne4 {[%emt 0:00:07]} Rd4 {[%emt 0:00:42]} 89. Ra7+ {[%emt 0:00:17]} Rd7 {[%emt 0:00:07]} 90. Ra5 {[%emt 0:00:16]} Rd1 {[%emt 0:00:29]} 91. Ra7+ {[%emt 0:00:22]} Rd7 {[%emt 0:00:08]} 92. Ra1 {[%emt 0:00:08]} Rd4 {[%emt 0:00:41]} 93. Re1 {[%emt 0:00:02]} Kf7 {[%emt 0:00:29]} 94. Kh4 {[%emt 0:00:02]} Kg6 {[%emt 0:00:39]} 95. Nf2 {[%emt 0:01:09]} Ng5 {[%emt 0:00:49]} 96. Re8 {[%emt 0:01:40]} Nf3+ {[%emt 0:00:19]} 97. Kg3 {[%emt 0:00:06]} Ng5 {[%emt 0:00:09]} 98. Re3 {[%emt 0:00:34]} Ra4 {[%emt 0:00:23]} 99. Nd3 {[%emt 0:00:23]} Ne4+ {[%emt 0:00:47]} 100. Kh4 {[%emt 0:00:11]} Kg7 {[%emt 0:01:22]} 101. Nf4 {[%emt 0:00:42]} Nd6 {[%emt 0:00:52]} 102. Nh5+ {[%emt 0:00:35]} Kf7 {[%emt 0:00:14]} 103. Rd3 {[%emt 0:01:02]} Ke7 {[%emt 0:00:54]} 104. Ng3 {[%emt 0:00:58]} Nf7 {[%emt 0:00:37]} 105. Re3+ {[%emt 0:00:20]} Kf6 {[%emt 0:00:29]} 106. Nh5+ {[%emt 0:00:15]} Kg6 {[%emt 0:00:07]} 107. Re6+ {[%emt 0:00:46]} Kh7 {[%emt 0:00:06]} 108. Re7 {[%emt 0:01:34]} Kg6 {[%emt 0:00:24]} 109. Re8 {[%emt 0:00:02]} Ra1 {[%emt 0:01:27]} 110. Re6+ {[%emt 0:01:02]} Kh7 {[%emt 0:00:06]} 111. Ng3 {[%emt 0:00:23]} Rg1 {[%emt 0:01:14]} 112. Re3 {[%emt 0:01:03]} Ra1 {[%emt 0:00:26]} 113. Kh5 {[%emt 0:00:40]} Ra5+ {[%emt 0:00:48]} 114. Nf5 {[%emt 0:00:07]} Ne5 {[%emt 0:00:30]} 115. Rc3 {[%emt 0:01:20]} Ra7 {[%emt 0:00:18]} 116. Rc5 {[%emt 0:00:28]} Ng6 {[%emt 0:00:23]} 117. Rc6 {[%emt 0:00:08]} Ne7 {[%emt 0:00:37]} 118. Rh6+ {[%emt 0:00:14]} Kg8 {[%emt 0:00:04]} 119. Nd4 {[%emt 0:01:20]} Ra5+ {[%emt 0:00:30]} 120. g5 {[%emt 0:00:29]} Rd5 {[%emt 0:00:22]} 121. Nf3 {[%emt 0:00:26]} Nf5 {[%emt 0:01:09]} 122. Rb6 {[%emt 0:00:31]} Rd6 {[%emt 0:00:27]} 123. Rb8+ {[%emt 0:00:03]} Kg7 {[%emt 0:00:42]} (123... Kh7 $11) 124. Rb7+ {[%emt 0:00:01]} (124. Rb5 $14 Ng3+ 125. Kg4) 124... Kg8 {[%emt 0:00:08]} 125. g6 {[%emt 0:00:40]} Rd5 {[%emt 0:00:26]} 126. Ng5 {[%emt 0:00:34]} Nd6 {[%emt 0:00:50]} 127. Re7 {[%emt 0:01:21]} Nf5 {[%emt 0:00:39]} 128. Ra7 {[%emt 0:00:38]} Nd6 {[%emt 0:00:26]} 129. Kg4 {[%emt 0:00:28]} Rd4+ {[%emt 0:00:15]} 130. Kf3 $1 {[%emt 0:00:03]} Rb4 $2 {[%emt 0:00:29]} (130... Nc8 $14 131. Rc7 Rd6) 131. Ne6 $18 {[%emt 0:00:09]} Rb8 {[%emt 0:00:44] [#]} 132. Kf4 {[%emt 0:00:11]} (132. Rg7+ $1 $16 Kh8 133. Rd7) 132... Re8 $11 {[%emt 0:00:39]} 133. Ke5 {[%emt 0:00:19]} Nc8 $2 {[%emt 0:00:06][%mdl 8192]} (133... Ne4 $11) 134. Rg7+ {[%emt 0:00:14]} Kh8 {[%emt 0:00:04]} 135. Rh7+ {[%emt 0:00:02]} Kg8 {[%emt 0:00:03]} 136. Kf6 {[%emt 0:00:56]} Nd6 {[%emt 0:00:31]} 137. Rg7+ {[%emt 0:00:03]} Kh8 {[%emt 0:00:05]} 138. Rd7 {[%emt 0:00:05]} Ne4+ {[%emt 0:00:23]} 139. Kf7 {[%emt 0:00:10]} 1-0

[Event "Czech Championship 2022"]
[Site "Usti nad Labem"]
[Date "2022.05.19"]
[Round "6.4"]
[White "Nemec, Jachym"]
[Black "Cernousek, Lukas"]
[Result "1/2-1/2"]
[ECO "A80"]
[WhiteElo "2367"]
[BlackElo "2440"]
[Annotator "TA"]
[PlyCount "67"]
[EventDate "2022.05.12"]
[EventType "swiss"]
[EventCountry "CZE"]
[SourceTitle "playchess.com"]
[Source "ChessBase"]
[SourceQuality "1"]
[TimeControl "40/5400+30:1800+30"]

{[%evp 12,67,10,0,8,5,21,15,23,-11,0,0,7,0,0,0,0,-18,-15,-29,-23,-6,0,0,0,-10,0,1,36,20,31,38,37,23,25,23,29,0,6,0,0,0,8,0,0,0,14,-49,-43,-55,0,-3,0,0,0,0,0,0]} 1. d4 {[%emt 0:00:02]} f5 {[%emt 0:00:07]} 2. Nc3 {[%emt 0:00:04]} Nf6 {[%emt 0:00:08]} 3. Bg5 {[%emt 0:00:04]} d5 {[%emt 0:00:07]} 4. Bxf6 {[%emt 0:00:04]} exf6 {[%emt 0:00:10]} 5. e3 {[%emt 0:00:04]} Be6 {[%emt 0:00:19]} 6. Bd3 {[%emt 0:00:05]} Nc6 {[%emt 0:00:12]} 7. Nge2 {[%emt 0:00:04] Threatening Nf4.} Qd7 {[%emt 0:00:10] A80: Dutch Defence: Unusual White second moves.} 8. a3 {[%emt 0:00:05]} g6 {[%emt 0:00:13]} 9. h4 {[%emt 0:05:39]} h5 {[%emt 0:00:21] [#]} 10. Qd2 $146 {[%emt 0:06:52]} ({Predecessor:} 10. Nf4 Bf7 11. Qf3 Ne7 12. Bb5 c6 13. Bd3 Nc8 14. Qe2 Nd6 15. O-O-O O-O-O 16. Kb1 {1-0 (51) Bus,K (2257)-Slomczewski,M (2045) Zgierz 2018}) 10... Bf7 {[%emt 0:05:24]} 11. b3 {[%emt 0:01:34]} Bh6 {[%emt 0:13:54]} 12. g3 {[%emt 0:01:32]} Ne7 {[%emt 0:15:24]} 13. Na4 {[%emt 0:08:36]} b6 {[%emt 0:00:07][%cal Bb7b6,Bb6c5][%mdl 32] Inhibits Nc5.} 14. Nb2 {[%emt 0:01:43]} O-O {[%emt 0:04:27]} 15. c3 {[%emt 0:08:26]} Nc8 {[%emt 0:04:39]} 16. c4 {[%emt 0:01:46]} c5 {[%emt 0:01:39]} 17. dxc5 {[%emt 0:01:49]} bxc5 {[%emt 0:00:38]} 18. Qc2 {[%emt 0:00:55]} Rb8 {[%emt 0:08:05]} 19. O-O {[%emt 0:06:56]} Qb7 {[%emt 0:04:18]} 20. Na4 {[%emt 0:02:15]} Qxb3 {[%emt 0:04:35]} 21. Qxb3 {[%emt 0:00:27]} Rxb3 {[%emt 0:00:02]} 22. Nxc5 {[%emt 0:00:28] Pair of Knights!} Rb2 {[%emt 0:00:09]} 23. cxd5 {[%emt 0:00:57]} Bxd5 {[%emt 0:00:30]} 24. Nc3 {[%emt 0:01:07]} Bf7 {[%emt 0:13:13]} 25. Rab1 {[%emt 0:20:41]} Rxb1 {[%emt 0:00:21]} 26. Rxb1 {[%emt 0:00:48]} ({Don't play} 26. Nxb1 Rd8 $15) 26... Nb6 {[%emt 0:00:03]} 27. Nb5 {[%emt 0:01:01]} Rc8 {[%emt 0:12:26]} 28. Nb7 {[%emt 0:06:41]} Bd5 {[%emt 0:04:31]} 29. N7d6 {[%emt 0:11:31]} (29. Nxa7 $11 Rc7 30. Rxb6) 29... Rd8 $1 $15 {[%emt 0:07:17]} 30. e4 {[%emt 0:01:32]} fxe4 {[%emt 0:00:54]} (30... Ba2 $15 31. Rd1 Bb3) 31. Bxe4 {[%emt 0:05:07] The position is equal.} a6 {[%emt 0:00:58]} 32. Nc3 {[%emt 0:00:17]} Rxd6 {[%emt 0:00:17]} 33. Nxd5 {[%emt 0:00:05]} Nxd5 {[%emt 0:00:16]} 34. Rd1 {[%emt 0:00:06] Weighted Error Value: White=0.09 (flawless) /Black=0.06 (flawless)} 1/2-1/2

[Event "Czech Championship 2022"]
[Site "Usti nad Labem"]
[Date "2022.05.19"]
[Round "6.5"]
[White "Smolik, Jachym"]
[Black "Stalmach, Richard"]
[Result "1/2-1/2"]
[ECO "A88"]
[WhiteElo "2272"]
[BlackElo "2350"]
[Annotator "TA"]
[PlyCount "122"]
[EventDate "2022.05.12"]
[EventType "swiss"]
[EventCountry "CZE"]
[SourceTitle "playchess.com"]
[Source "ChessBase"]
[SourceQuality "1"]
[TimeControl "40/5400+30:1800+30"]

{[%evp 18,122,9,0,33,18,17,24,28,13,22,40,35,24,47,39,69,2,42,31,41,-1,0,0,41,47,75,74,74,62,108,64,60,51,380,352,375,280,265,216,189,140,140,142,118,115,234,234,251,251,346,338,353,344,326,322,585,569,1233,1209,1045,726,707,722,697,630,724,653,608,574,683,666,1569,1538,1265,757,729,576,488,487,646,381,594,558,461,0,0,0,0,0,0,0,0,0,0,0,0,0,0,0,0,0,0,0,0,0,0]} 1. d4 {[%emt 0:00:02]} f5 {[%emt 0:00:05]} 2. g3 {[%emt 0:00:50]} Nf6 {[%emt 0:00:14]} 3. Bg2 {[%emt 0:00:07]} g6 {[%emt 0:00:09]} 4. Nf3 {[%emt 0:01:44]} Bg7 {[%emt 0:00:11]} 5. O-O {[%emt 0:00:12]} O-O {[%emt 0:00:06]} 6. c4 {[%emt 0:00:29]} d6 {[%emt 0:00:23][%cal Bd7d6,Bd6e5,Be5e4][%mdl 32]} 7. Nc3 {[%emt 0:01:38]} c6 {[%emt 0:00:14]} 8. Qc2 {[%emt 0:06:00]} Qc7 {[%emt 0:02:20]} 9. b3 {[%emt 0:03:07]} a5 {[%emt 0:06:39]} 10. Bb2 {[%emt 0:03:30]} e5 {[%emt 0:01:58] A88: Dutch Defence: Leningrad System: 5 Nf3 0-0 6 0-0 d6 7 Nc3 c6.} 11. dxe5 {[%emt 0:08:53]} dxe5 {[%emt 0:00:35] [#]} 12. Ba3 $146 {[%emt 0:00:51]} ({Predecessor:} 12. Rfd1 Na6 13. a3 Bd7 14. Rd2 Rae8 15. Rad1 Bc8 16. e3 e4 17. Ne1 Ng4 18. Bh3 {0-1 (46) Goler,I-Tidman,S Oropesa del Mar 1998}) 12... Rd8 {[%emt 0:07:45] White has an edge.} 13. Rad1 {[%emt 0:03:07]} e4 {[%emt 0:00:36]} 14. Rxd8+ {[%emt 0:11:42]} Qxd8 {[%emt 0:00:06]} 15. Rd1 {[%emt 0:00:03]} Bd7 {[%emt 0:02:17]} 16. Nd4 $36 {[%emt 0:00:41][%cal Od4e6][%mdl 2048] Black is under pressure.} Qe8 {[%emt 0:05:18] Against Ne6} 17. c5 {[%emt 0:13:43] White is much more active. The black rooks are badly placed.} (17. Na4 $14) 17... Na6 {[%emt 0:02:44]} 18. Na4 {[%emt 0:01:29]} Nd5 {[%emt 0:01:29]} 19. Qc4 {[%emt 0:05:43]} Qf7 {[%emt 0:07:31]} 20. e3 {[%emt 0:01:42]} Bf8 {[%emt 0:02:38]} 21. Bf1 {[%emt 0:06:51]} Be8 {[%emt 0:22:34]} 22. Qc1 {[%emt 0:03:02]} Qe7 {[%emt 0:09:44]} 23. Qd2 {[%emt 0:06:27]} Nac7 {[%emt 0:04:43]} (23... Nab4 $14) 24. Bc4 {[%emt 0:02:40]} Bf7 {[%emt 0:00:38]} 25. Nb6 {[%emt 0:06:58]} Nxb6 {[%emt 0:00:28][%mdl 8192]} (25... Rd8 $14) 26. cxb6 $18 {[%emt 0:01:10]} Qxa3 {[%emt 0:00:06]} 27. Bxf7+ {[%emt 0:00:05]} Kxf7 {[%emt 0:00:06]} 28. bxc7 {[%emt 0:00:06]} Qd6 {[%emt 0:16:57] [#]} 29. Nb5 {[%emt 0:01:32][%mdl 512]} cxb5 $16 {[%emt 0:00:43]} (29... Qxd2 $2 30. Rxd2 cxb5 31. Rd8 $18) 30. Qxd6 {[%emt 0:01:41]} Bxd6 {[%emt 0:00:04]} 31. Rxd6 {[%emt 0:00:05][%mdl 4096] Endgame Rd8 is the strong threat. KR-KR} Rc8 {[%emt 0:01:23]} (31... Ke7 $16 32. Rd5 Rc8) 32. Rd7+ $18 {[%emt 0:00:05]} Ke6 {[%emt 0:00:06]} 33. Rxh7 {[%emt 0:00:06]} Kd6 {[%emt 0:00:02]} 34. Rg7 {[%emt 0:05:08]} Kc5 {[%emt 0:00:06]} 35. Rxg6 {[%emt 0:00:26] aiming for Rg7.} Kb4 {[%emt 0:01:02]} 36. Rf6 {[%emt 0:03:01]} a4 $2 {[%emt 0:02:42]} (36... Rxc7 {was worth a try.} 37. Rxf5 Rc1+ 38. Kg2 Ra1) 37. bxa4 {[%emt 0:01:04]} Kxa4 {[%emt 0:00:07]} 38. Rxf5 {[%emt 0:01:03]} Rxc7 {[%emt 0:00:05]} 39. Rf8 {[%emt 0:01:24]} Ka3 {[%emt 0:02:59]} 40. Ra8+ {[%emt 0:00:05]} Kb2 {[%emt 0:00:04]} 41. h4 {[%emt 0:30:31][%cal Bh2h4,Bh4h5][%mdl 32]} b4 {[%emt 0:30:03]} 42. Ra4 {[%emt 0:01:49]} Kc3 {[%emt 0:00:28]} 43. Kg2 {[%emt 0:00:00]} b5 {[%emt 0:00:00]} 44. Ra6 {[%emt 0:00:00]} Rb7 {[%emt 0:00:00]} 45. h5 {[%emt 0:00:00]} b3 {[%emt 0:00:00]} 46. axb3 {[%emt 0:00:00]} Kxb3 {[%emt 0:00:00]} 47. Re6 {[%emt 0:00:00]} b4 {[%emt 0:00:00]} 48. Rxe4 {[%emt 0:00:00]} Kc3 {[%emt 0:00:00]} 49. Rd4 {[%emt 0:00:00]} b3 {[%emt 0:00:00]} (49... Kc2 {was called for.} 50. Rc4+ Kd2) 50. Rd1 {[%emt 0:00:00]} Kc2 {[%emt 0:00:00]} 51. Ra1 {[%emt 0:00:00]} (51. Rf1 $18) 51... b2 $11 {[%emt 0:00:00] The position is equal.} 52. Ra2 {[%emt 0:00:00]} Kd3 {[%emt 0:00:00]} 53. Rxb2 {[%emt 0:00:00]} Rxb2 {[%emt 0:00:00] KR-KP} 54. Kf3 {[%emt 0:00:00]} Rb8 {[%emt 0:00:00]} 55. Kf4 {[%emt 0:00:00]} Rf8+ {[%emt 0:00:00]} 56. Ke5 {[%emt 0:00:00]} Rxf2 {[%emt 0:00:00]} 57. g4 {[%emt 0:00:00]} Kxe3 {[%emt 0:00:00]} 58. h6 {[%emt 0:02:18]} Rb2 {[%emt 0:00:00]} 59. g5 {[%emt 0:00:40]} Rb5+ {[%emt 0:00:00]} 60. Kf6 {[%emt 0:00:26] Threatens to win with h7.} Kf4 {[%emt 0:02:40] ( -> ...Rb6+)} 61. h7 {[%emt 0:00:22]} Rb6+ {[%emt 0:00:43] Blacks defense is rewarded with a draw.  Weighted Error Value: White=0.20 (precise) /Black=0.57} 1/2-1/2

[Event "Czech Championship 2022"]
[Site "Usti nad Labem"]
[Date "2022.05.19"]
[Round "6.6"]
[White "Krejci, Jan"]
[Black "Stinka, Jakub"]
[Result "1/2-1/2"]
[ECO "D35"]
[WhiteElo "2520"]
[BlackElo "2345"]
[Annotator "TA"]
[PlyCount "117"]
[EventDate "2022.05.12"]
[EventType "swiss"]
[EventCountry "CZE"]
[SourceTitle "playchess.com"]
[Source "ChessBase"]
[SourceQuality "1"]
[TimeControl "40/5400+30:1800+30"]

{[%evp 13,117,18,24,17,18,19,20,14,30,18,20,23,31,19,24,8,15,15,16,11,11,-5,10,-12,-6,0,-1,-4,0,0,0,-3,0,-25,-18,-36,0,-53,-38,-30,-20,-266,-217,-262,-102,-105,-99,-81,-97,-88,-81,-81,-81,-100,-102,-101,-95,-133,-133,-160,-168,-169,-109,-206,-210,-218,-212,-211,-212,-183,-112,-744,-745,-690,-583,-583,-552,-552,-66,-66,0,0,0,0,0,0,0,0,0,0,0,0,0,0,0,0,0,0,0,0,0,0,0,0,0,0]} 1. d4 {[%emt 0:00:03]} d5 {[%emt 0:00:46]} 2. c4 {[%emt 0:00:02]} e6 {[%emt 0:00:07]} 3. Nc3 {[%emt 0:00:06]} Nf6 {[%emt 0:00:05]} 4. cxd5 {[%emt 0:00:06]} exd5 {[%emt 0:01:01]} 5. Bg5 {[%emt 0:00:07]} c6 {[%emt 0:00:06]} 6. e3 {[%emt 0:00:03]} Bd6 {[%emt 0:00:10]} 7. Bd3 {[%emt 0:01:07]} O-O {[%emt 0:00:42]} 8. Qc2 {[%emt 0:01:52][%cal Od3h7] White wants to play Bxh7+! D35: Queen's Gambit Declined: Exchange Variation.} h6 {[%emt 0:00:30]} 9. Bh4 {[%emt 0:00:04]} Re8 {[%emt 0:00:27]} 10. Nge2 {[%emt 0:02:27]} a5 {[%emt 0:03:46]} 11. h3 {[%emt 0:00:17]} Na6 {[%emt 0:00:26]} 12. a3 {[%emt 0:00:05] Prevents Nb4.} Nc7 {[%emt 0:00:14]} 13. O-O {[%emt 0:00:40]} Ne6 {[%emt 0:01:40]} 14. f3 {[%emt 0:00:42]} Ng5 {[%emt 0:03:24]} 15. f4 {[%emt 0:00:09] [#]} Ne6 $146 {[%emt 0:00:37]} ({Predecessor:} 15... Nxh3+ 16. gxh3 Rxe3 17. Bf5 Qe7 18. Bxc8 Rxc8 19. Kg2 Re8 20. Rf2 Qe6 21. Rh1 Nh5 {1-0 (44) King,A (2283)-Escudero Donoso,F (2119) Chess.com INT 2022}) 16. Kh1 {[%emt 0:00:32]} Nf8 {[%emt 0:00:55]} 17. Bf2 {[%emt 0:08:24]} Bd7 {[%emt 0:07:07]} 18. Ng3 {[%emt 0:03:58]} b5 {[%emt 0:06:50]} 19. Nf5 {[%emt 0:03:30]} Bxf5 {[%emt 0:05:43]} 20. Bxf5 {[%emt 0:00:03]} g6 {[%emt 0:01:51]} 21. Bd3 {[%emt 0:00:30]} Rc8 {[%emt 0:00:49]} 22. Rac1 {[%emt 0:16:31]} Kg7 {[%emt 0:13:41]} 23. Qd1 {[%emt 0:10:46]} N8d7 {[%emt 0:04:02]} 24. Qf3 {[%emt 0:07:01]} Qe7 {[%emt 0:06:13]} 25. Rce1 {[%emt 0:05:03]} (25. Rc2 $11) 25... b4 {[%emt 0:05:53]} 26. axb4 {[%emt 0:00:04]} axb4 {[%emt 0:00:16][%cal Ba5b4,Bb4c3][%mdl 32]} 27. e4 $2 {[%emt 0:02:40]} bxc3 $19 {[%emt 0:04:59]} 28. e5 {[%emt 0:00:01] [#]} Ne4 $2 {[%emt 0:05:48]} (28... cxb2 $1 $19 {[%cal Od6c7] White must now prevent ...Bc7!} 29. Re2 (29. Bh4 Qd8) 29... Rb8 $1) 29. exd6 $17 {[%emt 0:07:09]} Qxd6 {[%emt 0:00:51] And now ...Nd2 would win.} 30. Bxe4 {[%emt 0:00:05]} dxe4 {[%emt 0:00:20]} 31. Qxc3 {[%emt 0:00:05]} Nf6 $36 {[%emt 0:04:06][%cal Bd7f6,Bf6d5,Bd5c3][%mdl 2080] Black is in control.} (31... Qxf4 $2 32. d5+ (32. Bg3 Qg5 $16) 32... Kg8 33. dxc6 $18 (33. Bg3 Qg5 $16)) 32. f5 {[%emt 0:01:16]} Nd5 {[%emt 0:02:14]} 33. Bg3 {[%emt 0:00:09]} Nxc3 {[%emt 0:04:25]} 34. Bxd6 {[%emt 0:00:03]} Nd5 {[%emt 0:01:01]} 35. f6+ {[%emt 0:04:45]} Kh7 {[%emt 0:01:37]} ({Don't play} 35... Nxf6 36. Be5 Rxe5 37. dxe5 $18) 36. g4 {[%emt 0:00:24]} e3 {[%emt 0:02:32]} 37. Kg2 {[%emt 0:01:39]} Ra8 {[%emt 0:05:19]} (37... Re6 $19 38. Bg3 (38. Be5 c5 $17) 38... Ra8) 38. Kf3 {[%emt 0:09:39] [#]} (38. Re2 $17 {was worth a try.}) 38... Ra4 $1 $19 {[%emt 0:02:28]} 39. b4 {[%emt 0:03:00]} Re6 {[%emt 0:02:21] Against Be7} 40. Be5 {[%emt 0:05:57]} Rxb4 {[%emt 0:02:55] Hoping for ...c5.} 41. Ra1 {[%emt 0:31:22]} c5 {[%emt 0:13:51]} (41... e2 $19 42. Rfe1 g5) 42. Ra7 $2 {[%emt 0:00:00][%mdl 8192]} (42. Ra5 $17) 42... cxd4 {[%emt 0:03:07]} 43. Rxf7+ {[%emt 0:00:00]} Kg8 {[%emt 0:00:10]} 44. Rg7+ {[%emt 0:00:00]} Kf8 {[%emt 0:00:08]} 45. Ra1 {[%emt 0:00:00] Ra8+ would kill now.} Nxf6 $2 {[%emt 0:05:57]} ({Black should try} 45... Rxe5 $19 46. Ra8+ Re8) 46. Rxg6 $15 {[%emt 0:00:00]} Kf7 {[%emt 0:01:31]} (46... Rxe5 $15 47. Rxf6+ Kg7) 47. Rxf6+ $11 {[%emt 0:00:00] The position is equal.} Rxf6+ {[%emt 0:00:05]} 48. Bxf6 {[%emt 0:00:00]} Kxf6 {[%emt 0:00:07][%mdl 4096] Endgame KR-KR} 49. Ke4 $1 {[%emt 0:00:00]} Kg5 {[%emt 0:01:22]} 50. Ra5+ $1 {[%emt 0:00:00]} Kg6 {[%emt 0:01:44] Threatens to win with ...Rb1.} 51. Ra6+ {[%emt 0:00:00]} Kf7 {[%emt 0:01:20] aiming for ...Rb1.} 52. Ra2 {[%emt 0:01:35]} Ke7 {[%emt 0:03:27]} 53. h4 {[%emt 0:00:28][%cal Bh3h4,Bh4g5,Bg5g6][%mdl 32]} Kd7 {[%emt 0:00:54]} 54. g5 {[%emt 0:00:26]} hxg5 {[%emt 0:00:15]} 55. hxg5 {[%emt 0:00:01]} Ke7 {[%emt 0:00:28]} 56. g6 $1 {[%emt 0:00:28]} Kf6 {[%emt 0:00:23]} 57. Rg2 {[%emt 0:00:06]} Kg7 {[%emt 0:00:08]} 58. Kd3 {[%emt 0:00:18]} Ra4 {[%emt 0:01:21]} 59. Rg1 {[%emt 0:14:12] Whites escaped into a draw.  Weighted Error Value: White=0.27 (precise) /Black=0.23 (precise)} 1/2-1/2